Workbook

Sheet Sheet1
A1: INSTRUCTIONS: Use this form when a single information collection document involves multiple reporting and recordkeeping requirements. The totals of the figures in cols. should be entered in item 13 of OMB-83-I: cols. (D) &/or (I) = 13a (respondent is only counted once); cols. F & I = 13b; cols. H & K = 13c. (F)Total/(D)Total = (E)Average (H)Total/(F)Total = (G)Average (K)Total/(I)Total = (J)Average NOTE: The columns will calculate automatically. If Col. E's response is something other than annually, i.e., 1/6 years, list as "1/6" & decimal will display. | I1: TITLE OF INFORMATION COLLECTION DOCUMENT | O1: OMB NO. | P1: 0560-0316
I3: Emergency Relief Program 2022 (ERP 2022)
O4: DATE PREPARED
O5: 2026-03-03
A10: IDENTIFICATION OF REPORTING OR RECORDKEEPING REQUIREMENT | H10: ANNUAL BURDEN
H12: REPORTS | N12: RECORDS | Q12: RESPONDENT COST | S12: Revised Annual Burden hours
L14: TOTAL BURDEN HOURS | P14: TOTAL | S14: Previously Approved Burden Hours | T14: Difference Due to Adjustments | U14: Differences Due to Program Changes
G15: FORMS NO (S) | H15: NO. OF | I15: NO OF | J15: TOTAL ANNUAL | K15: HOURS | L15: (Col. F x G) | N15: NO. OF | O15: ANNUAL | P15: RECORD- | Q15: COST | R15: TOTAL
A16: SECTION OF | B16: DESCRIPTION | G16: (If "none" | H16: RESPONDENTS | I16: RESPONSES | J16: RESPONSES | K16: PER | L16: (H) | N16: RECORD- | O16: HOURS PER | P16: KEEPING HOURS | Q16: PER | R16: COST
A17: REGS. | G17: so state) | I17: PER | J17: (Col. D x E) | K17: RESPONSE | N17: KEEPERS | O17: RECORD- | P17: (Col. I x J) | Q17: HOUR | R17: (Col. H x L)
I18: RESPONDENT | L18: EXEMPT | M18: NON-EXEMPT | O18: KEEPER
A19: (A) | B19: (B) | G19: (C) | H19: (D) | I19: (E) | J19: (F) | K19: (G) | N19: (I) | O19: (J) | P19: (K) | Q19: (L) | R19: (M) | V19: Agency Notes
B20: Emergency Relief Program (ERP) 2022 Track 1 Application | G20: FSA-523 | H20: 0 | I20: 0 | J20: =SUM(H20*I20) -> 0 | K20: 0 | M20: =SUM(J20*K20) -> 0 | Q20: $0.00 | R20: =SUM(M20*Q20) -> 0 | S20: 50,000 | T20: =0-S20 -> (50,000) | V20: Form no longer in use for this program because the period to submit application and related eligiblity forms has ended.
B21: Emergency Relief Program (ERP) 2022 Track 2 Application | G21: FSA-524 | H21: 0 | I21: 0 | J21: =SUM(H21*I21) -> 0 | K21: 0 | M21: =SUM(J21*K21) -> 0 | Q21: $0.00 | R21: =SUM(M21*Q21) -> 0 | S21: 30,000 | T21: =0-S21 -> (30,000) | V21: Form no longer in use for this program because the period to submit application and related eligiblity forms has ended.
B22: Emergency Relief Program (ERP) 2022 Track 2 Tax Year Revenue Worksheet | G22: FSA-524-A | H22: 0 | I22: 0 | J22: =SUM(H22*I22) -> 0 | K22: 0 | M22: =SUM(J22*K22) -> 0 | Q22: $0.00 | R22: =SUM(M22*Q22) -> 0 | S22: 5,000 | T22: (5,000) | V22: Form no longer in use for this program because the period to submit application and related eligiblity forms has ended.
B23: Emergency Relief Program (ERP) 2022 Track 2 Expected Revenue Worksheet | G23: FSA-524-B | H23: 0 | I23: 0 | J23: 0 | K23: 0 | M23: 0 | Q23: $0.00 | R23: 0 | S23: 5,000 | T23: (5,000) | V23: Form no longer in use for this program because the period to submit application and related eligiblity forms has ended.
B24: Crop Insurance and/or NAP Coverage Agreement | G24: FSA-525 | H24: 0 | I24: 0 | J24: =SUM(H24*I24) -> 0 | K24: 0 | M24: =SUM(J24*K24) -> 0 | Q24: $0.00 | R24: =SUM(M24*Q24) -> 0 | S24: 5,100 | T24: (5,100) | V24: Form no longer in use for this program because the period to submit application and related eligiblity forms has ended.
B25: Customer Data Worksheet | G25: AD-2047 | H25: 0 | I25: 0 | J25: 0 | K25: 0 | M25: 0 | Q25: $0.00 | R25: 0 | S25: 88 | T25: (88) | V25: Form no longer in use for this program because the period to submit application and related eligiblity forms has ended.
A26: 7 CFR part 1400 | B26: Farm Operating Plan | G26: CCC-902 | H26: 0 | I26: 0 | J26: 0 | K26: 0 | M26: 0 | Q26: $0.00 | R26: 0 | S26: 1,840 | T26: (1,840) | V26: Form no longer in use for this program because the period to submit application and related eligiblity forms has ended.
A27: 7 CFR part 1400 | B27: Member Information for Legal Entities | G27: CCC-901 | H27: 0 | I27: 0 | J27: 0 | K27: 0 | M27: 0 | Q27: $0.00 | R27: 0 | S27: 184 | T27: (184) | V27: Form no longer in use for this program because the period to submit application and related eligiblity forms has ended.
B28: Highly Erodible Land Conservation (HELC) and Wetland Conservation (WC) Certification (EXEMPT from PRA 16 U.S.C. 3846) | G28: AD-1026 | H28: 0 | I28: 0 | J28: 0 | K28: 0 | L28: 0 | M28: 0 | Q28: $0.00 | R28: 0 | S28: 0 | T28: 0 | V28: Form no longer in use for this program because the period to submit application and related eligiblity forms has ended.
B29: Socially Disadvantaged, Limited Resource, Beginning and Veteran Farmer or Rancher Certification | G29: CCC-860 | H29: 0 | I29: 0 | J29: 0 | K29: 0 | M29: 0 | Q29: $0.00 | R29: 0 | S29: 2,300 | T29: (2,300) | V29: Form no longer in use for this program because the period to submit application and related eligiblity forms has ended.
B30: Request for an Exception to the $125,000 Payment Limitation for Certain Programs | G30: FSA-510 | H30: 0 | I30: 0 | J30: 0 | K30: 0 | M30: 0 | Q30: $0.00 | R30: 0 | S30: 560 | T30: (560) | V30: Form no longer in use for this program because the period to submit application and related eligiblity forms has ended.
B31: De minimis notification letter | G31: None | H31: 1,800 | I31: 1 | J31: 1,800 | K31: 0.0835 | M31: =K31*J31 -> 150 | Q31: $50.38 | R31: =Q31*M31 -> $7,572.11 | S31: 0 | U31: =M31 -> 150 | V31: New
B32: De Minimis Revenue Loss Certification for Uninsured/Uncovered Crops | G32: FSA-524C | H32: 1,800 | I32: 1 | J32: 1,800 | K32: 0.0835 | M32: =K32*J32 -> 150 | Q32: $50.38 | R32: =Q32*M32 -> $7,572.11 | S32: 0 | U32: =M32 -> 150 | V32: New
B33: Initial Notification Letter - Compliant | G33: None | H33: 178,560 | I33: 1 | J33: 178,560 | K33: =0.0835 -> 0.0835 | M33: 14,910 | Q33: $50.38 | R33: $751,153.71 | S33: 0 | U33: 14,910 | V33: New
B34: Initial Notification Letter – May Request Review | G34: None | H34: 13,440 | I34: 1 | J34: 13,440 | K34: =0.0835 -> 0.0835 | M34: 1,122 | Q34: $50.38 | R34: $56,538.45 | S34: 0 | U34: 1,122 | V34: New
B35: Time to gather information and respond to FSA | G35: None | H35: 9,600 | I35: 1 | J35: 9,600 | K35: 0.5000 | M35: 4,800 | Q35: $50.38 | R35: $241,824.00 | S35: 0 | U35: 4,800 | V35: New
B36: Second Notifcation Letter | G36: None | H36: 13,440 | I36: 1 | J36: 13,440 | K36: =0.0835 -> 0.0835 | M36: 1,122 | Q36: $50.38 | R36: $56,538.45 | S36: 0 | U36: 1,122 | V36: New
B37: SUBTOTAL | H37: 192,000 | J37: =SUM(J31:J36) -> 218,640 | L37: =SUM(L20:L28) -> 0 | M37: =SUM(M20:M36) -> 22,255 | P37: =SUM(P20:P36) -> 0.00 | R37: =SUM(R20:R36) -> $1,121,199 | S37: =SUM(S20:S36) -> 100,072 | T37: =SUM(T20:T36) -> (100,072) | U37: 22,255
B38: TOTAL OF ALL PAGES | J38: =SUM(J37) -> 218,640 | L38: =SUM(L37) -> 0 | M38: =SUM(M37) -> 22,255 | P38: =SUM(P37) -> 0.00 | R38: =SUM(R37) -> $1,121,199
A39: TOTAL - COLUMNS "F" AND "I" = OMB 83-I, 13b; COLUMNS "H" AND "K" = OMB 83-I, 13c | J39: =SUM(J38+N38) -> 218,640 | M39: =SUM(M38+P38) -> 22,255
A41: responses /respondent | C41: =J37/H37 -> 1.13875000
A42: hours per response | C42: =M37/J37 -> 0.101787596048299 | G42: =J39*0.25*48.37 -> 2643904.2
